fUST/lending_fUST_20250703
["ID","MTS","AMOUNT","RATE_DAILY","PERIOD"]
[369095774,1751473645804,150.5,0.0002191,120]
[369095775,1751473646248,150.5,0.000219,120]
[369095776,1751473648403,150.5,0.0002189,120]
[369095777,1751473649945,500.0,0.00027397,120]
[369095778,1751473651782,-1760.25659438,0.00018438,2]
[369095779,1751473651808,-153.0,0.00018608,2]
[369095780,1751473651830,-159.3697675,0.00018608,2]
[369095781,1751473651853,-153.0,0.00018608,2]
[369095782,1751473651875,-355.1062267,0.00018608,2]
[369095783,1751473651898,-176.0,0.00018748,2]
[369095784,1751473651920,-1200.0,0.0001875,2]
[369095785,1751473651942,-407.0,0.00018751,2]
[369095786,1751473651964,-413.27905453,0.00018751,2]
[369095787,1751473651986,-285.92692013,0.00018751,2]
[369095788,1751473652009,-207.4,0.00018752,2]
[369095789,1751473652030,-216.878177,0.00018794,2]
[369095790,1751473652050,-3307.44450722,0.000189,2]
[369095791,1751473652071,-2415.229899,0.00018926,2]
[369095792,1751473652092,-153.0,0.00019,2]
[369095793,1751473652113,-159.3697675,0.00019,2]
[369095794,1751473652135,-159.3697675,0.00019,2]
[369095795,1751473652156,-153.0,0.00019,2]
[369095796,1751473652177,-159.3697675,0.00019,2]
[369095797,1751473652200,-159.3697675,0.00019,2]
[369095798,1751473652225,-176.0,0.00019007,2]
[369095799,1751473652246,-181.4597517,0.000191,2]
[369095800,1751473652268,-1277.9412048,0.00019132,2]
[369095802,1751473656510,500.0,0.00027397,120]
[369095803,1751473663626,500.0,0.00027397,120]
[369095804,1751473670148,419.34760597,0.00025099,120]
[369095805,1751473670215,500.0,0.00027397,120]
[369095806,1751473671880,275.75791291,0.00025099,120]
[369095807,1751473675813,604.99994659,0.00025099,120]
[369095808,1751473676192,500.0,0.00027397,120]
[369095809,1751473676436,850.35456893,0.000246,120]
[369095810,1751473682044,500.0,0.00027397,120]
[369095811,1751473688268,500.0,0.00027397,120]
[369095812,1751473695265,500.0,0.00027397,120]
[369095814,1751473701324,217.39909649,0.00025099,120]
[369095815,1751473701425,500.0,0.00027397,120]
[369095816,1751473701939,965.96701961,0.00025099,120]
[369095817,1751473704261,1043.23823061,0.00025099,120]
[369095818,1751473707880,188.0,0.0002,120]
[369095819,1751473708305,500.0,0.00027397,120]
[369095820,1751473710292,965.35678039,0.00025099,120]
[369095821,1751473710739,917.24814871,0.00025099,120]
[369095822,1751473713900,564.24963414,0.00025099,120]
[369095823,1751473718341,320.75287504,0.00025099,60]
[369095824,1751473718802,201.31349382,0.00025099,120]
[369095825,1751473719293,846.04844118,0.00025099,120]
[369095826,1751473720226,500.0,0.00027397,120]
[369095827,1751473720511,661.97855982,0.00025099,60]
[369095828,1751473720599,689.33316142,0.00025099,120]
[369095829,1751473721996,155.0,0.00018,30]
[369095830,1751473722093,2055.84297178,0.00025099,60]
[369095831,1751473722131,240.82074905,0.00025099,120]
[369095832,1751473722869,333.23902263,0.00025099,120]
[369095834,1751473723576,242.50291311,0.00025099,120]
[369095835,1751473724011,472.18032264,0.0002,120]
[369095837,1751473725133,2000.0,0.00025099,120]
[369095838,1751473725898,1102.25181891,0.00025099,120]
[369095839,1751473726082,1701.06756369,0.00024,120]
[369095840,1751473726497,412.03183037,0.00024108,120]
[369095841,1751473726542,246.71823708,0.00025,120]
[369095842,1751473727027,472.06864135,0.00024,60]
[369095843,1751473727936,1800.15600948,0.00024,120]
[369095844,1751473727988,1401.94796328,0.00025099,60]
[369095845,1751473728260,256.10144348,0.0002465,120]
[369095846,1751473729023,1143.83222173,0.00025099,120]
[369095847,1751473729371,1009.0036803,0.00025099,120]
[369095853,1751473729963,1435.28121246,0.00025099,120]
[369095854,1751473730112,1662.02610281,0.00025099,120]
[369095855,1751473730146,465.05784893,0.00025099,120]
[369095856,1751473730294,409341.16259162,0.00025099,120]
[369095861,1751473733581,413.35058456,0.00024,120]
[369095862,1751473733730,972.87796331,0.00018,120]
[369095863,1751473734596,218.95242655,0.0001536,120]
[369095865,1751473736250,1013.35309069,0.0002,120]
[369095867,1751473738153,502.32276598,0.0002465,120]
[369095868,1751473738183,251.28734225,0.00024,120]
[369095869,1751473738548,636.64658,0.00027397,120]
[369095870,1751473738684,151.81528242,0.00025,120]
[369095871,1751473738716,323.84429657,0.00025,120]
[369095882,1751473813217,150.0,0.00015662,2]
[369095883,1751473817108,173.53746,0.0001833,61]
[369095884,1751473817335,173.53746,0.0001833,120]
[369095913,1751473832296,-173.53746,0.0001833,2]
[369095915,1751473832307,-185.51343021,0.0001901,2]
[369095917,1751473832316,-238.25052124,0.00019078,2]
[369095919,1751473832331,-185.89558,0.00019078,2]
[369095921,1751473832341,-207.4,0.00019166,2]
[369095923,1751473832352,-300.0,0.00019177,2]
[369095925,1751473832362,-912.0,0.00019177,2]
[369095927,1751473832372,-500.0,0.00019177,2]
[369095929,1751473832382,-237.79565651,0.00019177,2]
[369095932,1751473832391,-338.82263299,0.00019177,2]
[369095934,1751473832401,-428.37666244,0.00019178,2]
[369096078,1751473835957,200.0,0.00027,120]
[369096088,1751473838179,-31.62333756,0.00019178,2]
[369096089,1751473838191,-460.0,0.00019178,2]
[369096090,1751473838201,-460.0,0.00019178,2]
[369096091,1751473838211,-460.0,0.00019178,2]
[369096092,1751473838220,-460.0,0.00019178,2]
[369096093,1751473838229,-460.0,0.00019178,2]
[369096094,1751473838239,-151.0,0.00019178,2]
[369096095,1751473838249,-460.0,0.00019178,2]
[369096096,1751473838258,-151.0,0.00019178,2]
[369096097,1751473838267,-151.0,0.00019178,2]
[369096098,1751473838277,-263.16270588,0.00019178,2]
[369096099,1751473838286,-151.0,0.00019178,2]
[369096101,1751473838296,-500.0,0.00019178,2]
[369096102,1751473838305,-500.0,0.00019178,2]
[369096103,1751473838315,-151.0,0.00019178,2]
[369096104,1751473838326,-151.0,0.00019178,2]
[369096105,1751473838335,-151.0,0.00019178,2]
[369096106,1751473838344,-460.0,0.00019178,2]
[369096107,1751473838354,-151.0,0.00019178,2]
[369096108,1751473838363,-460.0,0.00019178,2]
[369096109,1751473838372,-151.0,0.00019178,2]
[369096110,1751473838381,-460.0,0.00019178,2]
[369096111,1751473838391,-480.5,0.00019178,2]
[369096112,1751473838401,-460.0,0.00019178,2]
[369096113,1751473838410,-607.64,0.00019178,2]
[369096114,1751473838419,-460.0,0.00019178,2]
[369096115,1751473838428,-460.0,0.00019178,2]
[369096116,1751473838438,-544.64,0.00019178,2]
[369096117,1751473838448,-460.0,0.00019178,2]
[369096118,1751473838457,-460.0,0.00019178,2]
[369096119,1751473838466,-681.05,0.00019178,2]
[369096120,1751473838476,-500.0,0.00019178,2]
[369096121,1751473838485,-460.0,0.00019178,2]
[369096122,1751473838495,-460.22035563,0.00019178,2]
[369096123,1751473838504,-460.0,0.00019178,2]
[369096124,1751473838513,-500.0,0.00019178,2]
[369096125,1751473838523,-500.0,0.00019178,2]
[369096126,1751473838532,-238.06882732,0.00019178,2]
[369096127,1751473838541,-151.0,0.00019178,2]
[369096128,1751473838551,-500.0,0.00019178,2]
[369096129,1751473838561,-500.0,0.00019178,2]
[369096130,1751473838570,-492.72,0.00019178,2]
[369096131,1751473838582,-251.45730541,0.00019178,2]
[369096132,1751473838591,-460.0,0.00019178,2]
[369096133,1751473838603,-826.46,0.00019178,2]
[369096134,1751473838613,-460.0,0.00019178,2]
[369096135,1751473838623,-460.0,0.00019178,2]
[369096136,1751473838633,-460.0,0.00019178,2]
[369096137,1751473838643,-460.0,0.00019178,2]
[369096138,1751473838652,-305.28335315,0.00019178,2]
[369096139,1751473838661,-1744.28,0.00019178,2]
[369096140,1751473838670,-460.0,0.00019178,2]
[369096141,1751473838680,-460.0,0.00019178,2]
[369096142,1751473838690,-460.0,0.00019178,2]
[369096143,1751473838699,-460.0,0.00019178,2]
[369096144,1751473838709,-703.58,0.00019178,2]
[369096145,1751473838718,-460.0,0.00019178,2]
[369096146,1751473838727,-460.0,0.00019178,2]
[369096147,1751473838737,-460.0,0.00019178,2]
[369096148,1751473838746,-151.0,0.00019178,2]
[369096149,1751473838756,-460.0,0.00019178,2]
[369096150,1751473838766,-151.0,0.00019178,2]
[369096151,1751473838776,-151.0,0.00019178,2]
[369096152,1751473838785,-460.0,0.00019178,2]
[369096153,1751473838796,-1547.77,0.00019178,2]
[369096154,1751473838806,-151.0,0.00019178,2]
[369096155,1751473838816,-500.0,0.00019178,2]
[369096156,1751473838826,-2216.71,0.00019178,2]
[369096157,1751473838835,-747.13,0.00019178,2]
[369096158,1751473838844,-151.0,0.00019178,2]
[369096159,1751473838854,-151.005927,0.00019178,2]
[369096160,1751473838864,-151.0,0.00019178,2]
[369096161,1751473838878,-315.57541724,0.00019178,2]
[369096162,1751473838887,-609.69,0.00019178,2]
[369096163,1751473838897,-151.0,0.00019178,2]
[369096164,1751473838906,-151.0,0.00019178,2]
[369096165,1751473838916,-1280.06,0.00019178,2]
[369096166,1751473838926,-415.3499226,0.00019178,2]
[369096167,1751473838935,-472.65,0.00019178,2]
[369096168,1751473838945,-460.0,0.00019178,2]
[369096169,1751473838954,-847.56,0.00019178,2]
[369096170,1751473838964,-1277.35,0.00019178,2]
[369096171,1751473838973,-197.99500278,0.00019178,2]
[369096172,1751473838983,-2256.3,0.00019178,2]
[369096173,1751473838992,-500.0,0.00019178,2]
[369096174,1751473839002,-151.0,0.00019178,2]
[369096175,1751473839011,-151.0,0.00019178,2]
[369096176,1751473839020,-496.32,0.00019178,2]
[369096177,1751473839030,-599.37306679,0.00019178,2]
[369096178,1751473839039,-460.0,0.00019178,2]
[369096179,1751473839048,-460.0,0.00019178,2]
[369096180,1751473839057,-460.0,0.00019178,2]
[369096181,1751473839066,-460.0,0.00019178,2]
[369096182,1751473839075,-1568.47477864,0.00019178,2]
[369096183,1751473839089,-1889.34522136,0.00019178,2]
[369096184,1751473839098,-460.0,0.00019178,2]
[369096185,1751473839107,-2239.02,0.00019178,2]
[369096186,1751473839116,-246.09855594,0.00019178,2]
[369096187,1751473839144,-48.96152715,0.00019178,2]
[369096188,1751473839153,-460.0,0.00019178,2]
[369096189,1751473839162,-460.0,0.00019178,2]
[369096190,1751473839172,-460.0,0.00019178,2]
[369096191,1751473839182,-460.0,0.00019178,2]
[369096192,1751473839191,-742.3,0.00019178,2]
[369096193,1751473839201,-460.0,0.00019178,2]
[369096194,1751473839210,-460.0,0.00019178,2]
[369096195,1751473839221,-702.81,0.00019178,2]
[369096196,1751473839230,-460.0,0.00019178,2]
[369096197,1751473839239,-1336.61,0.00019178,2]
[369096198,1751473839249,-460.0,0.00019178,2]
[369096199,1751473839259,-460.0,0.00019178,2]
[369096200,1751473839269,-706.55,0.00019178,2]
[369096201,1751473839278,-2089.96,0.00019178,2]
[369096202,1751473839287,-460.0,0.00019178,2]
[369096203,1751473839297,-460.0,0.00019178,2]
[369096204,1751473839306,-460.0,0.00019178,2]
[369096205,1751473839315,-460.0,0.00019178,2]
[369096206,1751473839325,-3013.04,0.00019178,2]
[369096207,1751473839334,-2682.63613255,0.00019178,2]
[369096208,1751473839343,-460.0,0.00019178,2]
[369096209,1751473839353,-1168.32,0.00019178,2]
[369096210,1751473839362,-460.0,0.00019178,2]
[369096211,1751473839371,-475.59,0.00019178,2]
[369096212,1751473839381,-578.60596437,0.00019178,2]
[369096213,1751473839390,-240.0,0.00019178,2]
[369096214,1751473839399,-181.27285946,0.00019178,2]
[369096215,1751473839409,-460.0,0.00019178,2]
[369096216,1751473839418,-460.0,0.00019178,2]
[369096217,1751473839428,-460.0,0.00019178,2]
[369096218,1751473839437,-460.0,0.00019178,2]
[369096219,1751473839447,-460.0,0.00019178,2]
[369096220,1751473839456,-460.0,0.00019178,2]
[369096221,1751473839466,-151.0,0.00019178,2]
[369096222,1751473839477,-151.0,0.00019178,2]
[369096223,1751473839486,-460.0,0.00019178,2]
[369096224,1751473839496,-460.0,0.00019178,2]
[369096225,1751473839507,-151.0,0.00019178,2]
[369096226,1751473839517,-460.0,0.00019178,2]
[369096227,1751473839527,-460.0,0.00019178,2]
[369096228,1751473839541,-460.0,0.00019178,2]
[369096229,1751473839551,-1519.15,0.00019178,2]
[369096230,1751473839560,-460.0,0.00019178,2]
[369096231,1751473839571,-500.0,0.00019178,2]
[369096232,1751473839582,-1377.41,0.00019178,2]
[369096233,1751473839592,-500.0,0.00019178,2]
[369096234,1751473839603,-500.0,0.00019178,2]
[369096235,1751473839612,-500.0,0.00019178,2]
[369096236,1751473839623,-500.0,0.00019178,2]
[369096237,1751473839633,-500.0,0.00019178,2]
[369096239,1751473839642,-151.0,0.00019178,2]
[369096241,1751473839654,-460.0,0.00019178,2]
[369096242,1751473839663,-460.0,0.00019178,2]
[369096244,1751473839673,-3610.49,0.00019178,2]
[369096246,1751473839682,-460.0,0.00019178,2]
[369096247,1751473839691,-500.0,0.00019178,2]
[369096249,1751473839700,-215.663612,0.00019178,2]
[369096251,1751473839711,-151.0,0.00019205,2]
[369096252,1751473839720,-151.0,0.00019205,2]
[369096254,1751473839729,-151.0,0.00019205,2]
[369096255,1751473839739,-500.0,0.00019205,2]
[369096256,1751473839749,-500.0,0.00019205,2]
[369096258,1751473839759,-152.36259293,0.00019205,2]
[369096260,1751473839768,-152.83566428,0.00019205,2]
[369096261,1751473839778,-151.0,0.00019205,2]
[369096263,1751473839787,-500.0,0.00019205,2]
[369096265,1751473839797,-500.0,0.00019205,2]
[369096267,1751473839807,-151.0,0.00019205,2]
[369096268,1751473839816,-581.6042664,0.00019205,2]
[369096270,1751473839825,-500.0,0.00019205,2]
[369096272,1751473839835,-151.0,0.00019205,2]
[369096274,1751473839844,-151.0,0.00019205,2]
[369096275,1751473839854,-500.0,0.00019205,2]
[369096276,1751473839864,-198.0,0.00019205,2]
[369096277,1751473839877,-151.0,0.00019205,2]
[369096278,1751473839887,-500.0,0.00019205,2]
[369096279,1751473839897,-190.02162087,0.00019205,2]
[369096280,1751473839906,-151.0,0.00019205,2]
[369096282,1751473839917,-691.96520058,0.00019215,2]
[369096284,1751473839927,-151.0,0.00019233,2]
[369096286,1751473839937,-151.0,0.00019233,2]
[369096288,1751473839947,-230.46578051,0.00019233,2]
[369096290,1751473839958,-302.0,0.00019233,2]
[369096292,1751473839968,-500.0,0.00019233,2]
[369096294,1751473839977,-151.0,0.00019233,2]
[369096296,1751473839987,-500.0,0.00019233,2]
[369096298,1751473839997,-552.40864838,0.00019233,2]
[369096300,1751473840006,-151.0,0.00019233,2]
[369096302,1751473840016,-396.0,0.00019233,2]
[369096304,1751473840027,-151.0,0.00019233,2]
[369096306,1751473840036,-151.0,0.00019233,2]
[369096308,1751473840046,-500.0,0.00019233,2]
[369096310,1751473840056,-151.0,0.00019233,2]
[369096312,1751473840066,-500.0,0.00019233,2]
[369096314,1751473840075,-151.0,0.00019233,2]
[369096316,1751473840085,-151.0,0.0001926,2]
[369096318,1751473840095,-217.95655386,0.0001926,2]
[369096338,1751473840263,-500.0,0.0001926,2]
[369096341,1751473840273,-298.68294943,0.0001926,2]
[369096344,1751473840283,-500.0,0.0001926,2]
[369096345,1751473840292,-246.8883299,0.0001926,2]
[369096347,1751473840301,-199.19616753,0.0001926,2]
[369096349,1751473840311,-151.0,0.0001926,2]
[369096351,1751473840323,-359.0,0.0001926,2]
[369096353,1751473840333,-292.0,0.0001926,2]
[369096355,1751473840342,-500.0,0.0001926,2]
[369096357,1751473840352,-500.0,0.00019273,2]
[369096359,1751473840362,-500.0,0.00019282,2]
[369096361,1751473840371,-526.45,0.00019283,3]
[369096363,1751473840380,-652.67,0.00019283,3]
[369096365,1751473840389,-326.33,0.00019283,3]
[369096367,1751473840398,-163.17,0.00019283,3]
[369096369,1751473840407,-489.51,0.00019283,3]
[369096371,1751473840416,-161.00021201,0.00019288,2]
[369096373,1751473840426,-500.0,0.00019288,2]
[369096375,1751473840435,-500.0,0.00019288,2]
[369096377,1751473840445,-212.98735537,0.00019288,2]
[369096379,1751473840454,-500.0,0.00019288,2]
[369096381,1751473840463,-500.0,0.00019292,2]
[369096383,1751473840473,-500.0,0.00019292,2]
[369096385,1751473840482,-500.0,0.00019292,2]
[369096387,1751473840491,-500.0,0.00019292,2]
[369096389,1751473840500,-500.0,0.00019292,2]
[369096391,1751473840510,-151.0,0.00019293,2]
[369096393,1751473840519,-301.195104,0.00019293,2]
[369096395,1751473840529,-47668.84641203,0.00019293,2]
[369096397,1751473840544,-2550.98,0.00019293,2]
[369096517,1751473845850,-18555.39747831,0.00019293,2]
[369096518,1751473845863,-1097.9597278,0.00019293,2]
[369096543,1751473879304,150.0,0.00012671,2]
[369096544,1751473892460,926.0,0.00027397,120]
[369096546,1751473904560,213.90888375,0.00026,120]
[369096548,1751473951290,200.0,0.00026066,120]
[369096549,1751473976924,524.6887252,0.00026,120]
[369096550,1751474040205,2000.0,0.0002739,120]
[369096552,1751474070884,279.206673,0.00013699,2]
[369096554,1751474114047,196.90230409,0.000222,69]
[369096555,1751474251027,200.0,0.00024527,120]
[369096557,1751474285947,524.6887252,0.00026,120]
[369096558,1751474288662,1278.16631,0.00027397,120]
[369096559,1751474310207,1774.303208,0.00027397,120]
[369096560,1751474395706,1000.0,0.00027397,120]
[369096561,1751474397704,1000.0,0.00027397,120]
[369096562,1751474398966,1000.0,0.00027397,120]
[369096563,1751474400121,1000.0,0.00027397,120]
[369096564,1751474401223,1000.0,0.00027397,120]
[369096565,1751474402372,1000.0,0.00027397,120]
[369096566,1751474403467,1000.0,0.00027397,120]
[369096567,1751474404562,1000.0,0.00027397,120]
[369096568,1751474405499,1000.0,0.00027397,120]
[369096569,1751474409334,6045.81837657,0.00016749,2]
[369096570,1751474409636,5000.0,0.00016749,2]
[369096571,1751474409955,5000.0,0.00016749,2]
[369096572,1751474410229,2634.77113658,0.00016749,2]
[369096573,1751474410653,-214.95330411,0.00016749,2]
[369096574,1751474411818,873.25685375,0.00027397,120]
[369096575,1751474414164,600.0,0.00027397,120]
[369096579,1751474593327,524.6887252,0.00026,120]
[369096581,1751474726812,150.5,0.00021908,120]
[369096582,1751474727325,150.5,0.00021898,120]
[369096583,1751474727767,158.38,0.00021888,120]
[369096585,1751474839094,-300.0,0.00016748,2]
[369096586,1751474839116,-2150.27555931,0.00016749,2]
[369096587,1751474839138,-5000.0,0.00016749,2]
[369096588,1751474839163,-399.98425997,0.00017871,2]
[369096589,1751474857420,200.0,0.00025614,120]
[369096593,1751474900835,524.6887252,0.00026,120]
[369096600,1751475032416,-410.852791,0.000178,2]
[369096601,1751475032426,-300.0,0.0001787,2]
[369096602,1751475032436,-24500.01574003,0.00017871,2]
[369096603,1751475032446,-219.389186,0.00018147,2]
[369096604,1751475032456,-178.01016068,0.00018147,2]
[369096605,1751475032466,-168.0,0.0001819,2]
[369096606,1751475032475,-168.0,0.00018198,2]
[369096607,1751475032485,-292.82154758,0.00018286,2]
[369096608,1751475032494,-168.0,0.00018543,2]
[369096609,1751475032504,-260.1187368,0.00018603,2]
[369096610,1751475032514,-10044.06491404,0.00018619,2]
[369096611,1751475032526,-1571.76128968,0.00018619,2]
[369096612,1751475032537,-1194.0,0.00018619,2]
[369096721,1751475038355,-5062.42271286,0.00018619,2]
[369096723,1751475038368,-7011.33126936,0.00018619,2]
[369096725,1751475038378,-168.0,0.00018619,2]
[369096727,1751475038388,-168.0,0.00018689,2]
[369096729,1751475038398,-5888.0,0.00018708,2]
[369096731,1751475038408,-2611.50234871,0.0001871,2]
[369096738,1751475038460,-104415.41675634,0.0001871,2]
[369096740,1751475038472,-4004.59195489,0.0001871,2]
[369096743,1751475038484,-765.0,0.0001871,2]
[369096747,1751475038515,-109521.9028167,0.0001871,2]
[369096818,1751475039302,-1275.49,0.0001871,2]
[369096821,1751475040532,150.0,0.00013987,2]
[369096842,1751475044761,-1500.0,0.0001871,2]
[369096857,1751475046464,-490.66197027,0.0001871,2]
[369096858,1751475046476,-1485.21455135,0.0001871,2]
[369096859,1751475046487,-10305.88397007,0.0001871,2]
[369096860,1751475143020,213.90888375,0.00026,120]
[369096862,1751475182575,315.218615,0.00013699,2]
[369096863,1751475211046,524.6887252,0.00026,120]
[369096865,1751475289147,200.0,0.0002739,120]
[369096866,1751475299594,200.0,0.0002739,120]
[369096867,1751475450947,2499.99,0.00027397,120]
[369096868,1751475463379,213.90888375,0.00026,120]
[369096869,1751475518165,524.6887252,0.00026,120]
[369096870,1751475566289,152.0,0.00021908,120]
[369096871,1751475566702,152.0,0.00021898,120]
[369096872,1751475567144,152.0,0.00021888,120]
[369096873,1751475567581,152.0,0.0002375,120]
[369096874,1751475568273,152.0,0.0002374,120]
[369096875,1751475568456,152.0,0.0002373,120]
[369096876,1751475568888,152.0,0.0002459,120]
[369096877,1751475569330,152.0,0.0002458,120]
[369096878,1751475569771,152.0,0.0002519,120]
[369096879,1751475570219,155.5,0.0002518,120]
[369096880,1751475587761,1330.727406,0.00027397,120]
[369096886,1751475774339,213.90888375,0.00026,120]
[369096888,1751475829884,524.6887252,0.00026,120]
[369096889,1751475931498,200.0,0.00026469,120]
[369096891,1751475990708,200.0,0.00026727,120]
[369096892,1751476030090,-3752.22192052,0.00016749,2]
[369096893,1751476063077,1000.0,0.00027,120]
[369096894,1751476065060,1000.0,0.00027,120]
[369096895,1751476066880,1000.0,0.00027,120]
[369096896,1751476067566,1000.0,0.00027,120]
[369096897,1751476068751,1000.0,0.00027,120]
[369096898,1751476070433,1000.0,0.00027,120]
[369096899,1751476089952,1000.0,0.00024,60]
[369096900,1751476091697,1000.0,0.00024,60]
[369096901,1751476137217,524.6887252,0.00026,120]
[369096904,1751476202203,-252.99,0.00016315,2]
[369096905,1751476205463,-151.95642009,0.00016315,2]
[369096906,1751476206589,294.0663,0.00027397,120]
[369096907,1751476206970,-165.23468313,0.00016315,2]
[369096908,1751476208496,-158.92768568,0.00016315,2]
[369096909,1751476214749,-192.29515522,0.00016315,2]
[369096910,1751476221832,-208.4440557,0.00016315,2]
[369096911,1751476224892,-179.48351142,0.00016315,2]
[369096912,1751476227652,-155.8454081,0.00016315,2]
[369096913,1751476229184,-163.75489393,0.00016315,2]
[369096914,1751476231319,-242.23530072,0.00016315,2]
[369096950,1751476232536,-360.12039791,0.00016315,2]
[369096952,1751476232546,-109.99503699,0.00016749,2]
[369096954,1751476232555,-1200.0,0.00017298,2]
[369096956,1751476232565,-1200.0,0.00017298,2]
[369096958,1751476232574,-300.0,0.00017298,2]
[369096960,1751476232583,-300.0,0.00017298,2]
[369096962,1751476232592,-300.0,0.00017298,2]
[369096964,1751476232601,-16144.30631076,0.00017299,2]
[369096966,1751476232610,-495.38449093,0.00017299,2]
[369096968,1751476232620,-500.0,0.00017299,2]
[369096970,1751476232629,-600.0,0.00017299,2]
[369096972,1751476232639,-420.06253375,0.00017299,2]
[369096974,1751476232648,-500.0,0.00017299,2]
[369096975,1751476232662,-500.0,0.00017299,2]
[369096977,1751476232671,-611.31688235,0.00017299,2]
[369096979,1751476232680,-242.15518566,0.00017299,2]
[369096981,1751476232690,-11004.54102702,0.00017301,2]
[369096985,1751476232715,-2531.2875119,0.00017301,2]
[369097150,1751476238769,-11364.17146108,0.00017301,2]
[369097151,1751476238779,-172.9670092,0.00017362,2]
[369097152,1751476238788,-928.21673961,0.00017473,2]
[369097153,1751476238797,-160.0,0.00017863,2]
[369097154,1751476238807,-443.04159215,0.00017923,2]
[369097155,1751476238816,-180.64153328,0.00017923,2]
[369097156,1751476238833,-319.35846672,0.00017923,2]
[369097157,1751476238842,-189.68525104,0.00017923,2]
[369097158,1751476238851,-500.0,0.00017923,2]
[369097159,1751476238860,-298.3062649,0.00017923,2]
[369097160,1751476238870,-500.0,0.00017923,2]
[369097161,1751476238879,-500.0,0.00017923,2]
[369097162,1751476238888,-207.4,0.00017924,2]
[369097163,1751476238898,-151.0,0.00017924,2]
[369097164,1751476238907,-151.0,0.00017924,2]
[369097165,1751476238917,-151.0,0.00017924,2]
[369097166,1751476238926,-151.0,0.00017924,2]
[369097167,1751476238936,-151.0,0.00017924,2]
[369097168,1751476238946,-152.61247216,0.00017924,2]
[369097169,1751476238955,-500.0,0.00017924,2]
[369097170,1751476238964,-293.18842781,0.00017924,2]
[369097171,1751476238974,-151.0,0.00017924,2]
[369097172,1751476238983,-690.642,0.00017924,2]
[369097173,1751476238992,-500.0,0.00017924,2]
[369097174,1751476239002,-151.0,0.00017924,2]
[369097175,1751476239011,-151.0,0.00017924,2]
[369097176,1751476239020,-151.0,0.00017924,2]
[369097177,1751476239029,-5000.0,0.00017924,2]
[369097178,1751476239038,-151.0,0.00017924,2]
[369097179,1751476239047,-151.0,0.00017924,2]
[369097180,1751476239057,-151.0,0.00017924,2]
[369097181,1751476239067,-151.0,0.00017924,2]
[369097182,1751476239076,-151.0,0.00017924,2]
[369097183,1751476239085,-500.0,0.00017924,2]
[369097184,1751476239094,-500.0,0.00017924,2]
[369097185,1751476239103,-500.0,0.00017924,2]
[369097186,1751476239112,-500.0,0.00017924,2]
[369097187,1751476239121,-500.0,0.00017924,2]
[369097188,1751476239130,-500.0,0.00017924,2]
[369097189,1751476239139,-500.0,0.00017924,2]
[369097190,1751476239149,-500.0,0.00017924,2]
[369097191,1751476239158,-151.0,0.00017924,2]
[369097192,1751476239167,-500.0,0.00017924,2]
[369097193,1751476239176,-813.52174997,0.00017924,2]
[369097194,1751476239185,-500.0,0.00017924,2]